[Event "African Individual Chess-ch Women 2024"]
[Site "Accra"]
[Date "2024.03.20"]
[Round "9.1"]
[White "Haile, Lidet Abate"]
[Black "February, Jesse Nikki"]
[Result "1/2-1/2"]
[ECO "C01"]
[WhiteElo "1798"]
[BlackElo "1920"]
[Annotator "RC"]
[PlyCount "118"]
[EventDate "2024.03.13"]
[EventCountry "GHA"]
[SourceTitle "playchess.com"]
[Source "ChessBase"]
[SourceQuality "1"]
[TimeControl "5400+30"]

1. e4 {[%emt 1:31:00]} e6 {[%emt 1:31:00]} 2. d4 {[%emt 0:00:30]} d5 {[%emt 0:00:30]} 3. exd5 {[%emt 0:00:30]} exd5 {[%emt 0:00:30]} 4. Bd3 {[%emt 0:00:30]} Nc6 {[%emt 0:00:30]} 5. c3 {[%emt 0:00:30]} Bd6 {[%emt 0:00:30]} 6. Nf3 {[%emt 0:00:30]} Bg4 {[%emt 0:00:30]} 7. O-O {[%emt 0:00:30]} Qd7 {[%emt 0:00:30]} 8. Nbd2 {[%emt 0:00:30]} Nge7 {[%emt 0:00:30]} 9. Re1 {[%emt 0:00:30]} f6 {[%emt 0:00:30]} 10. Qc2 {[%emt 0:00:30]} O-O-O {[%emt 0:00:30]} 11. b4 {[%emt 0:00:30]} Bf5 {[%emt 0:00:30]} 12. Bxf5 {[%emt 0:00:30]} Qxf5 {[%emt 0:00:30]} 13. Qa4 {[%emt 0:00:30]} g5 {[%emt 0:00:30]} 14. Nf1 {[%emt 0:00:30]} g4 {[%emt 0:00:30]} 15. Nh4 {[%emt 0:00:30]} Qh5 {[%emt 0:00:30]} 16. g3 {[%emt 0:00:30]} Ng6 {[%emt 0:00:30]} 17. Ng2 {[%emt 0:00:30]} Kb8 {[%emt 0:00:30]} 18. Nfe3 {[%emt 0:00:30]} Bxb4 {[%emt 0:00:30]} 19. Rb1 {[%emt 0:00:30]} Nxd4 {[%emt 0:00:30]} 20. cxd4 {[%emt 0:00:30]} Bxe1 {[%emt 0:00:30]} 21. Nxe1 {[%emt 0:00:30]} Rd6 {[%emt 0:00:30]} 22. Nd3 {[%emt 0:00:30]} Rb6 {[%emt 0:00:30]} 23. Rxb6 {[%emt 0:00:30]} axb6 {[%emt 0:00:30]} 24. Qd7 {[%emt 0:00:30]} Rc8 {[%emt 0:00:30]} 25. Ba3 {[%emt 0:00:30]} Nf8 {[%emt 0:00:30]} 26. Bxf8 {[%emt 0:00:30]} Rxf8 {[%emt 0:00:30]} 27. Nf4 {[%emt 0:00:30]} Qf7 {[%emt 0:00:30]} 28. Qxg4 {[%emt 0:00:30]} f5 {[%emt 0:00:30]} 29. Qe2 {[%emt 0:00:30]} c6 {[%emt 0:00:30]} 30. Qb2 {[%emt 0:00:30]} Kc7 {[%emt 0:00:30]} 31. Qc3 {[%emt 0:00:30]} Kb8 {[%emt 0:00:30]} 32. Qb4 {[%emt 0:00:30]} Ka7 {[%emt 0:00:30]} 33. Nd3 {[%emt 0:00:30]} Rd8 {[%emt 0:00:30]} 34. Ne5 {[%emt 0:00:30]} Qe6 {[%emt 0:00:30]} 35. f4 {[%emt 0:00:30]} h5 {[%emt 0:00:30]} 36. Ng2 {[%emt 0:00:30]} Rc8 {[%emt 0:00:30]} 37. Kf2 {[%emt 0:00:30]} Rc7 {[%emt 0:00:30]} 38. Nh4 {[%emt 0:00:30]} c5 {[%emt 0:00:30]} 39. Qa4+ {[%emt 0:00:30]} Kb8 {[%emt 0:00:30]} 40. Nhg6 {[%emt 0:00:30]} b5 {[%emt 0:00:30]} 41. Qxb5 {[%emt 0:00:30]} cxd4 {[%emt 0:00:30]} 42. Qa4 {[%emt 0:00:30]} Qa6 {[%emt 0:00:30]} 43. Qxa6 {[%emt 0:00:30]} bxa6 {[%emt 0:00:30]} 44. a4 {[%emt 0:00:30]} Rc2+ {[%emt 0:00:30]} 45. Kf3 {[%emt 0:00:30]} Rxh2 {[%emt 0:00:30]} 46. Nc6+ {[%emt 0:00:30]} Kc7 {[%emt 0:00:30]} 47. Nxd4 {[%emt 0:00:30]} Ra2 {[%emt 0:00:30]} 48. Nxf5 {[%emt 0:00:30]} Ra3+ {[%emt 0:00:30]} 49. Kf2 {[%emt 0:00:30]} Rxa4 {[%emt 0:00:30]} 50. Ng7 {[%emt 0:00:30]} d4 {[%emt 0:00:30]} 51. Nxh5 {[%emt 0:00:30]} Rb4 {[%emt 0:00:30]} 52. Nf6 {[%emt 0:00:30]} Kd6 {[%emt 0:00:30]} 53. Ne4+ {[%emt 0:00:30]} Kd5 {[%emt 0:00:30]} 54. Nd2 {[%emt 0:00:30]} a5 {[%emt 0:00:30]} 55. Ne5 {[%emt 0:00:30]} a4 {[%emt 0:00:30]} 56. Nd3 {[%emt 0:00:30]} Rb8 {[%emt 0:00:30]} 57. g4 {[%emt 0:00:30]} a3 {[%emt 0:00:30]} 58. Nc1 {[%emt 0:00:30]} Rb2 {[%emt 0:00:30]} 59. Ke2 {[%emt 0:00:30]} a2 {[%emt 0:00:30]} 1/2-1/2

[Event "African Individual Chess-ch Women 2024"]
[Site "Accra"]
[Date "2024.03.20"]
[Round "9.2"]
[White "Mbatha, Constance"]
[Black "Nassr, Lina"]
[Result "1/2-1/2"]
[ECO "B43"]
[WhiteElo "1799"]
[BlackElo "2080"]
[Annotator "RC"]
[PlyCount "91"]
[EventDate "2024.03.13"]
[EventCountry "GHA"]
[SourceTitle "playchess.com"]
[Source "ChessBase"]
[SourceQuality "1"]
[TimeControl "5400+30"]

1. e4 {[%emt 0:00:10]} c5 {[%emt 0:00:10]} 2. Nf3 {[%emt 0:00:10]} e6 {[%emt 0:00:07]} 3. d4 {[%emt 0:00:33]} cxd4 {[%emt 0:00:05]} 4. Nxd4 {[%emt 0:00:07]} a6 {[%emt 0:00:15]} 5. Nc3 {[%emt 0:00:26]} b5 {[%emt 0:00:15]} 6. a3 {[%emt 0:00:09]} Bb7 {[%emt 0:00:22]} 7. Bd3 {[%emt 0:01:14]} Qc7 {[%emt 0:00:48]} 8. O-O {[%emt 0:00:50]} Be7 {[%emt 0:02:47]} 9. Be3 {[%emt 0:01:37]} Nf6 {[%emt 0:02:14]} 10. h3 {[%emt 0:00:45]} d6 {[%emt 0:03:32]} 11. Qe2 {[%emt 0:02:09]} Nbd7 {[%emt 0:04:28]} 12. Rac1 {[%emt 0:03:19]} O-O {[%emt 0:03:29]} 13. f4 {[%emt 0:12:45]} Nb6 {[%emt 0:08:26]} 14. Bf2 {[%emt 0:08:33]} Nfd7 {[%emt 0:12:56]} 15. Rce1 {[%emt 0:09:50]} Nc4 {[%emt 0:03:51]} 16. Ncxb5 {[%emt 0:05:44]} axb5 {[%emt 0:06:10]} 17. Nxb5 {[%emt 0:00:04]} Qc6 {[%emt 0:07:10]} 18. Bxc4 {[%emt 0:00:04]} Nc5 {[%emt 0:02:20]} 19. Bxc5 {[%emt 0:01:42]} Qxc5+ {[%emt 0:01:11]} 20. Kh2 {[%emt 0:00:17]} Rfc8 {[%emt 0:05:30]} 21. Bd3 {[%emt 0:00:04]} d5 {[%emt 0:04:28]} 22. e5 {[%emt 0:01:29]} Bc6 {[%emt 0:04:12]} 23. Nc3 {[%emt 0:00:37]} g6 {[%emt 0:01:36]} 24. Nb1 {[%emt 0:04:22]} Qb6 {[%emt 0:04:11]} 25. b3 {[%emt 0:01:00]} Bxa3 {[%emt 0:02:46]} 26. Qg4 {[%emt 0:02:58]} Bf8 {[%emt 0:02:34]} 27. f5 {[%emt 0:00:28]} Be8 {[%emt 0:03:41]} 28. Nd2 {[%emt 0:08:52]} Rc7 {[%emt 0:07:04]} 29. f6 {[%emt 0:00:04]} Qb4 {[%emt 0:00:46]} 30. Qe2 {[%emt 0:01:59]} Bh6 {[%emt 0:02:27]} 31. Nf3 {[%emt 0:00:05]} Ra2 {[%emt 0:00:59]} 32. Rb1 {[%emt 0:03:07]} Bb5 {[%emt 0:02:18]} 33. Ne1 {[%emt 0:01:21]} Bxd3 {[%emt 0:02:04]} 34. Nxd3 {[%emt 0:02:13]} Qd4 {[%emt 0:01:00]} 35. Ne1 {[%emt 0:28:53]} Bf4+ {[%emt 0:00:57]} 36. Kh1 {[%emt 0:00:00]} Qxe5 {[%emt 0:00:37]} 37. Qb5 {[%emt 0:00:00]} Rc8 {[%emt 0:00:27]} 38. Nd3 {[%emt 0:00:00]} Qb8 {[%emt 0:00:07]} 39. Qxb8 {[%emt 0:00:00]} Bxb8 {[%emt 0:00:02]} 40. c4 {[%emt 0:00:00]} d4 {[%emt 0:01:21]} 41. Rfd1 {[%emt 0:00:00]} h5 {[%emt 0:00:00]} 42. c5 {[%emt 0:00:00]} e5 {[%emt 0:00:00]} 43. b4 {[%emt 0:00:00]} Ra6 {[%emt 0:00:00]} 44. b5 {[%emt 0:00:00]} Rxf6 {[%emt 0:00:00]} 45. c6 {[%emt 0:00:00]} e4 {[%emt 0:00:00]} 46. Nc5 {[%emt 0:00:00]} 1/2-1/2

[Event "African Individual Chess-ch Women 2024"]
[Site "Accra"]
[Date "2024.03.20"]
[Round "9.3"]
[White "Wafa, Shahenda"]
[Black "Banda Natalie Katlo"]
[Result "1-0"]
[ECO "B18"]
[WhiteElo "2083"]
[BlackElo "1772"]
[Annotator "RC"]
[PlyCount "117"]
[EventDate "2024.03.13"]
[EventCountry "GHA"]
[SourceTitle "playchess.com"]
[Source "ChessBase"]
[SourceQuality "1"]
[TimeControl "5400+30"]

1. e4 {[%emt 0:01:31]} c6 {[%emt 0:00:05]} 2. d4 {[%emt 0:00:10]} d5 {[%emt 0:00:04]} 3. Nc3 {[%emt 0:00:10]} dxe4 {[%emt 0:00:10]} 4. Nxe4 {[%emt 0:00:02]} Bf5 {[%emt 0:00:10]} 5. Ng3 {[%emt 0:00:10]} Bg6 {[%emt 0:00:05]} 6. Nf3 {[%emt 0:00:38]} Nf6 {[%emt 0:00:41]} 7. Ne5 {[%emt 0:03:43]} Nbd7 {[%emt 0:01:46]} 8. Nd3 {[%emt 0:06:15]} e6 {[%emt 0:03:17]} 9. h4 {[%emt 0:05:22]} h6 {[%emt 0:05:35]} 10. Nf4 {[%emt 0:02:20]} Bh7 {[%emt 0:02:17]} 11. Bd3 {[%emt 0:00:32]} e5 {[%emt 0:05:39]} 12. Qe2 {[%emt 0:03:14]} Qe7 {[%emt 0:01:00]} 13. dxe5 {[%emt 0:00:15]} Qxe5 {[%emt 0:02:02]} 14. Qxe5+ {[%emt 0:03:59]} Nxe5 {[%emt 0:00:06]} 15. Bxh7 {[%emt 0:00:05]} Rxh7 {[%emt 0:03:01]} 16. Be3 {[%emt 0:03:00]} Neg4 {[%emt 0:17:38]} 17. Bd4 {[%emt 0:01:48]} Bd6 {[%emt 0:02:20]} 18. Nfe2 {[%emt 0:06:04]} c5 {[%emt 0:01:59]} 19. Bxf6 {[%emt 0:03:03]} Nxf6 {[%emt 0:00:16]} 20. Nf5 {[%emt 0:00:37]} O-O-O {[%emt 0:03:18]} 21. O-O-O {[%emt 0:00:58]} Kc7 {[%emt 0:02:15]} 22. Nxd6 {[%emt 0:02:26]} Rxd6 {[%emt 0:00:13]} 23. Nc3 {[%emt 0:01:45]} a6 {[%emt 0:01:45]} 24. Na4 {[%emt 0:04:25]} Kc6 {[%emt 0:03:46]} 25. Rxd6+ {[%emt 0:01:12]} Kxd6 {[%emt 0:00:04]} 26. Rd1+ {[%emt 0:00:21]} Kc6 {[%emt 0:00:27]} 27. Re1 {[%emt 0:01:16]} Nd5 {[%emt 0:01:50]} 28. c4 {[%emt 0:05:26]} Nf4 {[%emt 0:00:58]} 29. Re4 {[%emt 0:03:15]} g5 {[%emt 0:03:20]} 30. Kc2 {[%emt 0:01:06]} b5 {[%emt 0:06:24]} 31. cxb5+ {[%emt 0:00:58]} axb5 {[%emt 0:00:07]} 32. Nc3 {[%emt 0:06:09]} b4 {[%emt 0:02:29]} 33. hxg5 {[%emt 0:02:33]} hxg5 {[%emt 0:02:40]} 34. g3 {[%emt 0:01:08]} Ne6 {[%emt 0:02:41]} 35. Nd1 {[%emt 0:01:38]} Kd5 {[%emt 0:04:05]} 36. Re1 {[%emt 0:00:59]} Nd4+ {[%emt 0:01:44]} 37. Kc1 {[%emt 0:00:34]} Nf3 {[%emt 0:02:11]} 38. Re7 {[%emt 0:01:52]} Nd4 {[%emt 0:03:24]} 39. Ne3+ {[%emt 0:03:48]} Kd6 {[%emt 0:00:21]} 40. Ra7 {[%emt 0:00:21]} Rh1+ {[%emt 0:03:56]} 41. Kd2 {[%emt 0:00:41]} f5 {[%emt 0:02:13]} 42. Ra6+ {[%emt 0:03:17]} Ke5 {[%emt 0:01:42]} 43. Kd3 {[%emt 0:02:36]} f4 {[%emt 0:01:53]} 44. Ng4+ {[%emt 0:10:29]} Kf5 {[%emt 0:01:49]} 45. Nh6+ {[%emt 0:00:08]} Ke5 {[%emt 0:00:09]} 46. Nf7+ {[%emt 0:00:12]} Kf5 {[%emt 0:00:56]} 47. gxf4 {[%emt 0:02:31]} gxf4 {[%emt 0:01:52]} 48. Rh6 {[%emt 0:07:37]} Rb1 {[%emt 0:03:28]} 49. b3 {[%emt 0:00:00]} Rb2 {[%emt 0:00:00]} 50. Nd6+ {[%emt 0:00:00]} Kg5 {[%emt 0:00:00]} 51. Rh2 {[%emt 0:00:00]} Rxa2 {[%emt 0:00:00]} 52. Ne4+ {[%emt 0:00:00]} Kg4 {[%emt 0:00:00]} 53. f3+ {[%emt 0:00:00]} Kxf3 {[%emt 0:00:00]} 54. Rxa2 {[%emt 0:00:00]} Nxb3 {[%emt 0:00:00]} 55. Rf2+ {[%emt 0:00:00]} Kg4 {[%emt 0:00:00]} 56. Kc4 {[%emt 0:00:00]} Nc1 {[%emt 0:00:00]} 57. Rc2 {[%emt 0:00:00]} Kf5 {[%emt 0:00:00]} 58. Nd6+ {[%emt 0:00:00]} Ke6 {[%emt 0:00:00]} 59. Nb7 {[%emt 0:07:21]} 1-0

[Event "African Individual Chess-ch Women 2024"]
[Site "Accra"]
[Date "2024.03.20"]
[Round "9.4"]
[White "Nakabo, Peninah"]
[Black "QUICKPEN, Deborah Ebimobo-ere"]
[Result "1/2-1/2"]
[ECO "C07"]
[WhiteElo "1836"]
[BlackElo "1945"]
[Annotator "RC"]
[PlyCount "89"]
[EventDate "2024.03.13"]
[EventCountry "GHA"]
[SourceTitle "playchess.com"]
[Source "ChessBase"]
[SourceQuality "1"]
[TimeControl "5400+30"]

1. e4 {[%emt 0:00:08]} e6 {[%emt 0:00:16]} 2. d4 {[%emt 0:00:07]} d5 {[%emt 0:00:25]} 3. Nd2 {[%emt 0:00:07]} c5 {[%emt 0:00:13]} 4. Bb5+ {[%emt 0:00:49]} Nc6 {[%emt 0:00:42]} 5. exd5 {[%emt 0:00:54]} Qxd5 {[%emt 0:00:25]} 6. Ndf3 {[%emt 0:00:45]} cxd4 {[%emt 0:00:41]} 7. Bxc6+ {[%emt 0:04:27]} Qxc6 {[%emt 0:00:21]} 8. Ne2 {[%emt 0:05:33]} Bb4+ {[%emt 0:04:38]} 9. Bd2 {[%emt 0:02:16]} Bc5 {[%emt 0:01:37]} 10. O-O {[%emt 0:00:35]} Nf6 {[%emt 0:01:03]} 11. Nexd4 {[%emt 0:04:29]} Qb6 {[%emt 0:03:49]} 12. Nb3 {[%emt 0:02:06]} Be7 {[%emt 0:04:15]} 13. Qe2 {[%emt 0:05:03]} Bd7 {[%emt 0:00:56]} 14. a4 {[%emt 0:03:00]} a6 {[%emt 0:05:49]} 15. Rfd1 {[%emt 0:07:57]} O-O {[%emt 0:02:16]} 16. Ba5 {[%emt 0:03:30]} Qa7 {[%emt 0:02:19]} 17. Ne5 {[%emt 0:00:37]} Be8 {[%emt 0:07:33]} 18. Nd4 {[%emt 0:15:13]} Bc5 {[%emt 0:03:40]} 19. Ndf3 {[%emt 0:02:17]} b6 {[%emt 0:01:41]} 20. Be1 {[%emt 0:00:54]} Qc7 {[%emt 0:00:27]} 21. b4 {[%emt 0:02:33]} Be7 {[%emt 0:01:46]} 22. c4 {[%emt 0:00:37]} Bc6 {[%emt 0:01:03]} 23. Nxc6 {[%emt 0:01:11]} Qxc6 {[%emt 0:00:06]} 24. a5 {[%emt 0:03:46]} bxa5 {[%emt 0:01:32]} 25. Rxa5 {[%emt 0:02:35]} Rfb8 {[%emt 0:01:25]} 26. b5 {[%emt 0:01:13]} axb5 {[%emt 0:00:48]} 27. Rxa8 {[%emt 0:00:38]} Qxa8 {[%emt 0:00:36]} 28. cxb5 {[%emt 0:00:09]} Qa4 {[%emt 0:00:33]} 29. Rb1 {[%emt 0:01:29]} Nd5 {[%emt 0:00:43]} 30. Ne5 {[%emt 0:04:35]} Bd6 {[%emt 0:05:51]} 31. Qc4 {[%emt 0:03:58]} Qa3 {[%emt 0:04:45]} 32. Nd7 {[%emt 0:02:20]} Rd8 {[%emt 0:00:54]} 33. b6 {[%emt 0:01:07]} Bxh2+ {[%emt 0:03:29]} 34. Kxh2 {[%emt 0:02:31]} Qd6+ {[%emt 0:00:05]} 35. g3 {[%emt 0:01:14]} Rxd7 {[%emt 0:01:47]} 36. b7 {[%emt 0:00:41]} Rd8 {[%emt 0:01:57]} 37. Qc8 {[%emt 0:02:31]} Nb6 {[%emt 0:01:28]} 38. Rxb6 {[%emt 0:05:46]} Qxb6 {[%emt 0:00:56]} 39. Ba5 {[%emt 0:00:18]} Qxf2+ {[%emt 0:00:18]} 40. Kh3 {[%emt 0:01:07]} Qf5+ {[%emt 0:01:11]} 41. Kg2 {[%emt 0:01:12]} Qd5+ {[%emt 0:01:23]} 42. Kh2 {[%emt 0:01:12]} Qh5+ {[%emt 0:01:30]} 43. Kg2 {[%emt 0:00:29]} Qe2+ {[%emt 0:00:42]} 44. Kh3 {[%emt 0:00:17]} Qf1+ {[%emt 0:00:10]} 45. Kh2 {[%emt 0:00:41]} 1/2-1/2

[Event "African Individual Chess-ch Women 2024"]
[Site "Accra"]
[Date "2024.03.20"]
[Round "9.5"]
[White "Ofowino, Toritsemuwa"]
[Black "Paulo, Jemima"]
[Result "0-1"]
[ECO "B92"]
[WhiteElo "1950"]
[BlackElo "1946"]
[Annotator "RC"]
[PlyCount "163"]
[EventDate "2024.03.13"]
[EventCountry "GHA"]
[SourceTitle "playchess.com"]
[Source "ChessBase"]
[SourceQuality "1"]
[TimeControl "5400+30"]

1. e4 {[%emt 0:00:16]} c5 {[%emt 0:00:15]} 2. Nf3 {[%emt 0:00:11]} d6 {[%emt 0:00:28]} 3. d4 {[%emt 0:00:13]} cxd4 {[%emt 0:00:22]} 4. Nxd4 {[%emt 0:00:15]} Nf6 {[%emt 0:00:29]} 5. Nc3 {[%emt 0:03:02]} g6 {[%emt 0:00:06]} 6. Be2 {[%emt 0:02:45]} Bg7 {[%emt 0:00:06]} 7. Be3 {[%emt 0:01:55]} a6 {[%emt 0:00:39]} 8. O-O {[%emt 0:04:30]} Nbd7 {[%emt 0:00:10]} 9. Qd2 {[%emt 0:03:33]} b5 {[%emt 0:00:37]} 10. a3 {[%emt 0:00:21]} Bb7 {[%emt 0:00:06]} 11. f3 {[%emt 0:00:49]} Rc8 {[%emt 0:00:13]} 12. Rfd1 {[%emt 0:10:20]} O-O {[%emt 0:00:35]} 13. Bf1 {[%emt 0:00:13]} Qc7 {[%emt 0:00:11]} 14. Rac1 {[%emt 0:01:40]} Ne5 {[%emt 0:00:15]} 15. Qf2 {[%emt 0:00:39]} Rfd8 {[%emt 0:03:54]} 16. Nb3 {[%emt 0:00:40]} Nfd7 {[%emt 0:01:49]} 17. h3 {[%emt 0:06:41]} e6 {[%emt 0:05:05]} 18. Rd2 {[%emt 0:00:50]} Nc4 {[%emt 0:00:15]} 19. Bxc4 {[%emt 0:00:16]} bxc4 {[%emt 0:00:06]} 20. Nd4 {[%emt 0:00:40]} d5 {[%emt 0:00:22]} 21. exd5 {[%emt 0:01:47]} exd5 {[%emt 0:00:10]} 22. Nde2 {[%emt 0:01:54]} Nc5 {[%emt 0:02:23]} 23. Rcd1 {[%emt 0:00:18]} Bf8 {[%emt 0:32:58]} 24. Nf4 {[%emt 0:05:31]} d4 {[%emt 0:11:32]} 25. Rxd4 {[%emt 0:01:10]} Rxd4 {[%emt 0:00:06]} 26. Rxd4 {[%emt 0:00:04]} Nd7 {[%emt 0:00:06]} 27. Nfd5 {[%emt 0:04:49]} Qe5 {[%emt 0:01:00]} 28. Rd1 {[%emt 0:04:33]} Bxd5 {[%emt 0:04:35]} 29. Rxd5 {[%emt 0:00:48]} Qe6 {[%emt 0:00:08]} 30. Rd1 {[%emt 0:00:37]} Nf6 {[%emt 0:00:32]} 31. Bd4 {[%emt 0:03:50]} Re8 {[%emt 0:02:50]} 32. Qh4 {[%emt 0:13:33]} Nh5 {[%emt 0:00:14]} 33. Ne4 {[%emt 0:00:41]} f5 {[%emt 0:00:35]} 34. Nc3 {[%emt 0:02:13]} Be7 {[%emt 0:01:18]} 35. Qe1 {[%emt 0:02:35]} Qf7 {[%emt 0:00:07]} 36. Qe5 {[%emt 0:00:39]} Nf6 {[%emt 0:02:58]} 37. Qc7 {[%emt 0:02:40]} Qe6 {[%emt 0:00:47]} 38. Qb7 {[%emt 0:03:54]} Rd8 {[%emt 0:01:06]} 39. Qa7 {[%emt 0:03:05]} Rd6 {[%emt 0:06:45]} 40. Kf1 {[%emt 0:00:42]} Rd7 {[%emt 0:01:36]} 41. Qb8+ {[%emt 0:00:44]} Kf7 {[%emt 0:00:13]} 42. Qe5 {[%emt 0:00:16]} Qc6 {[%emt 0:00:37]} 43. Re1 {[%emt 0:00:41]} Bd8 {[%emt 0:00:22]} 44. Qc5 {[%emt 0:01:59]} Qxc5 {[%emt 0:00:08]} 45. Bxc5 {[%emt 0:00:06]} Ba5 {[%emt 0:00:39]} 46. Bb4 {[%emt 0:02:46]} Bxb4 {[%emt 0:01:14]} 47. axb4 {[%emt 0:00:01]} Rb7 {[%emt 0:00:13]} 48. Na2 {[%emt 0:00:23]} Nd5 {[%emt 0:00:20]} 49. c3 {[%emt 0:00:47]} Nf4 {[%emt 0:00:11]} 50. Nc1 {[%emt 0:05:37]} Kf6 {[%emt 0:00:52]} 51. Ne2 {[%emt 0:00:54]} Nd3 {[%emt 0:23:22]} 52. Ra1 {[%emt 0:01:07]} Rb6 {[%emt 0:00:00]} 53. Rb1 {[%emt 0:00:39]} Re6 {[%emt 0:00:00]} 54. Nd4 {[%emt 0:01:25]} Re3 {[%emt 0:00:00]} 55. Nc2 {[%emt 0:00:10]} Re6 {[%emt 0:00:00]} 56. Nd4 {[%emt 0:02:20]} Re7 {[%emt 0:00:00]} 57. Ra1 {[%emt 0:01:15]} Kg5 {[%emt 0:00:00]} 58. Ne2 {[%emt 0:00:44]} Re6 {[%emt 0:00:00]} 59. Nd4 {[%emt 0:00:33]} Rd6 {[%emt 0:00:00]} 60. Rb1 {[%emt 0:00:46]} Nxb4 {[%emt 0:00:00]} 61. cxb4 {[%emt 0:00:00]} Rxd4 {[%emt 0:00:00]} 62. Rc1 {[%emt 0:00:00]} Kf4 {[%emt 0:00:00]} 63. Ke1 {[%emt 0:00:00]} Kg3 {[%emt 0:00:00]} 64. Rc2 {[%emt 0:00:00]} f4 {[%emt 0:00:00]} 65. h4 {[%emt 0:00:00]} h5 {[%emt 0:00:00]} 66. Re2 {[%emt 0:00:00]} Rd3 {[%emt 0:00:00]} 67. Re6 {[%emt 0:00:00]} Kxg2 {[%emt 0:00:00]} 68. Rxg6+ {[%emt 0:00:00]} Kxf3 {[%emt 0:00:00]} 69. Rc6 {[%emt 0:00:00]} Kg2 {[%emt 0:00:00]} 70. Rg6+ {[%emt 0:00:00]} Rg3 {[%emt 0:00:00]} 71. Rf6 {[%emt 0:00:00]} f3 {[%emt 0:00:00]} 72. Kd2 {[%emt 0:00:00]} Rg8 {[%emt 0:00:00]} 73. Rxa6 {[%emt 0:00:00]} f2 {[%emt 0:00:00]} 74. Rf6 {[%emt 0:00:00]} f1=Q {[%emt 0:00:00]} 75. Rxf1 {[%emt 0:00:00]} Kxf1 {[%emt 0:00:00]} 76. Kc3 {[%emt 0:00:00]} Kg2 {[%emt 0:00:00]} 77. Kxc4 {[%emt 0:00:00]} Kh3 {[%emt 0:00:00]} 78. b5 {[%emt 0:00:00]} Kxh4 {[%emt 0:00:00]} 79. b6 {[%emt 0:00:00]} Kg3 {[%emt 0:00:00]} 80. Kc5 {[%emt 0:00:00]} h4 {[%emt 0:00:00]} 81. b7 {[%emt 0:00:00]} h3 {[%emt 0:00:00]} 82. Kd4 {[%emt 0:13:05]} 0-1

[Event "African Individual Chess-ch Women 2024"]
[Site "Accra"]
[Date "2024.03.20"]
[Round "9.6"]
[White "Mongeli, Sasha"]
[Black "Laubscher, Anzel"]
[Result "1-0"]
[ECO "B38"]
[WhiteElo "1858"]
[BlackElo "1820"]
[Annotator "NA RC"]
[PlyCount "110"]
[EventDate "2024.03.13"]
[EventCountry "GHA"]
[SourceTitle "playchess.com"]
[Source "ChessBase"]
[SourceQuality "1"]
[TimeControl "5400+30"]

1. e4 {[%emt 0:00:12]} c5 {[%emt 0:00:20]} 2. Nf3 {[%emt 0:00:23]} d6 {[%emt 0:00:06]} 3. d4 {[%emt 0:00:08]} cxd4 {[%emt 0:00:06]} 4. Nxd4 {[%emt 0:00:08]} Nf6 {[%emt 0:00:10]} 5. f3 {[%emt 0:03:18]} g6 {[%emt 0:00:40]} 6. c4 {[%emt 0:01:00]} Bg7 {[%emt 0:00:39]} 7. Nc3 {[%emt 0:00:45]} O-O {[%emt 0:01:26]} 8. Be3 {[%emt 0:01:02]} Nc6 {[%emt 0:01:16]} 9. Qd2 {[%emt 0:01:02]} Bd7 {[%emt 0:05:39]} 10. Be2 {[%emt 0:01:31]} a6 {[%emt 0:02:01]} 11. O-O {[%emt 0:02:20]} Ne5 {[%emt 0:17:10]} 12. Rac1 {[%emt 0:07:01] B38: Sicilian: Maroczy Bind with 5...Bg7 and 7...0-0.} h5 {[%emt 0:05:04]} 13. Nd5 {[%emt 0:03:33]} Nh7 {[%emt 0:05:26]} (13... b5 $14) 14. Nc2 {[%emt 0:16:53]} Bc6 {[%emt 0:07:05]} 15. Ncb4 {[%emt 0:06:14]} Nd7 {[%emt 0:05:36]} 16. Rfd1 {[%emt 0:03:05]} a5 {[%emt 0:04:39]} 17. Nd3 {[%emt 0:00:30]} Re8 {[%emt 0:10:54]} 18. b3 {[%emt 0:03:57]} e6 {[%emt 0:02:53]} 19. Nc3 {[%emt 0:00:42]} Nb6 {[%emt 0:02:36]} 20. Nf2 {[%emt 0:01:30]} Bf8 {[%emt 0:04:37]} 21. Nh3 {[%emt 0:09:40]} (21. e5 $142) 21... Be7 {[%emt 0:03:16]} 22. Bf4 {[%emt 0:03:21]} e5 {[%emt 0:04:29]} 23. Be3 {[%emt 0:00:19]} Bd7 {[%emt 0:04:25]} 24. Nf2 {[%emt 0:00:31]} a4 {[%emt 0:02:11]} 25. Bxb6 {[%emt 0:04:56]} Qxb6 {[%emt 0:00:38]} 26. Nd5 {[%emt 0:00:08]} Qd8 {[%emt 0:08:40]} 27. Nxe7+ {[%emt 0:00:18]} Rxe7 {[%emt 0:00:53]} 28. Qxd6 {[%emt 0:00:09]} axb3 {[%emt 0:00:27]} 29. axb3 {[%emt 0:00:14]} Ra2 {[%emt 0:00:56]} 30. Kf1 {[%emt 0:02:06]} Nf8 {[%emt 0:00:26]} 31. c5 {[%emt 0:04:53]} Re6 {[%emt 0:00:34]} 32. Qd5 {[%emt 0:02:46]} Qg5 {[%emt 0:00:28] [#]} 33. b4 $2 {[%emt 0:00:55]} (33. Qxb7 $2 {is the wrong capture.} Qe3 34. Re1 Rxe2 35. Rxe2 Qxc1+ 36. Re1 Qxc5 $19) (33. Nh3 $1 $16 {[%cal Rh3g5] keeps the pressure on.} Qe3 34. Qd3 Qxd3 35. Bxd3) 33... Rb2 $2 {[%emt 0:00:32]} ({Better is} 33... Rxe2 $1 $19 34. Kxe2 (34. f4 $2 Qxf4 35. Kxe2 Rf6 $19) 34... Bb5+ 35. Nd3 Qxg2+ 36. Ke3 Rf6 (36... Qxh2 37. Rh1 $14)) 34. Nd3 {[%emt 0:05:11]} Rxe2 {[%emt 0:00:11]} 35. Kxe2 {[%emt 0:00:06]} Qxg2+ {[%emt 0:00:07]} 36. Nf2 {[%emt 0:00:05]} Bb5+ {[%emt 0:00:19]} ({Und nicht} 36... Qxh2 37. Qxb7 Bc6 38. Qb8 $14) 37. Rd3 {[%emt 0:03:02]} Rf6 {[%emt 0:00:52]} 38. Rc4 {[%emt 0:01:16]} Bxc4 {[%emt 0:00:37]} 39. Qxc4 {[%emt 0:00:07]} Ne6 $19 {[%emt 0:00:20]} 40. Ra3 {[%emt 0:13:03]} Nd4+ {[%emt 0:00:22]} 41. Ke1 {[%emt 0:01:55]} Qg1+ {[%emt 0:00:00]} 42. Kd2 {[%emt 0:00:00]} Qxf2+ {[%emt 0:00:00]} 43. Kc1 {[%emt 0:00:00]} Qg1+ {[%emt 0:00:00]} 44. Kb2 {[%emt 0:00:00]} Qxh2+ {[%emt 0:00:00]} 45. Kb1 {[%emt 0:00:00]} Nxf3 {[%emt 0:00:00]} 46. Qc1 {[%emt 0:00:00]} Nd2+ {[%emt 0:00:00]} 47. Kc2 {[%emt 0:00:00]} Nc4+ {[%emt 0:00:00]} 48. Kb3 {[%emt 0:00:00]} Nxa3 {[%emt 0:00:00]} 49. Kxa3 {[%emt 0:00:00]} Ra6+ {[%emt 0:00:00]} 50. Kb3 {[%emt 0:00:00]} Qa2+ {[%emt 0:00:00]} 51. Kc3 {[%emt 0:00:00]} Ra3+ {[%emt 0:00:00]} 52. Qxa3 {[%emt 0:00:00]} Qxa3+ {[%emt 0:00:00]} 53. Kc4 {[%emt 0:00:00]} Qa6+ {[%emt 0:00:00]} 54. b5 {[%emt 0:00:00]} Qa4+ {[%emt 0:00:00]} 55. Kd5 {[%emt 0:00:00]} Qd4# {[%emt 0:00:00]} 1-0